fUST/lending_fUST_20251231
["ID","MTS","AMOUNT","RATE_DAILY","PERIOD"]
[400204105,1767195044948,-303.4572356,0.00020548,2]
[400204106,1767195044960,-303.4572356,0.00020548,2]
[400204107,1767195044970,-599.7286954,0.00020548,2]
[400204108,1767195044980,-303.4572356,0.00020548,2]
[400204109,1767195044991,-599.7286954,0.00020548,2]
[400204110,1767195045000,-303.4572356,0.00020548,2]
[400204111,1767195045010,-599.7286954,0.00020548,2]
[400204112,1767195045019,-599.7286954,0.00020548,2]
[400204113,1767195045031,-599.7286954,0.00020548,2]
[400204114,1767195045041,-599.7286954,0.00020548,2]
[400204115,1767195045051,-599.7286954,0.00020548,2]
[400204116,1767195045060,-599.7286954,0.00020548,2]
[400204117,1767195045070,-362.0,0.00020629,2]
[400204118,1767195045085,-3162.0,0.00020651,2]
[400204119,1767195045094,-741.21847049,0.00020745,2]
[400204120,1767195045104,-830.81254218,0.00020791,7]
[400204122,1767195045115,-1372.05763502,0.00020791,7]
[400204124,1767195045125,-1000.0,0.000208,2]
[400204126,1767195045134,-274.0,0.00020883,10]
[400204127,1767195045143,-446.0,0.00020883,10]
[400204128,1767195045153,-20727.0,0.00020883,10]
[400204129,1767195045163,-14147.3315005,0.000209,5]
[400204130,1767195045174,-151.0,0.000209,3]
[400204131,1767195045184,-1671.36073019,0.000209,2]
[400204132,1767195045193,-2400.0,0.00020901,2]
[400204133,1767195045203,-430.1394753,0.00020927,2]
[400204134,1767195045212,-376.3998898,0.00020927,2]
[400204135,1767195045222,-376.3998898,0.00020973,2]
[400204136,1767195045231,-376.3998898,0.00020973,2]
[400204137,1767195045240,-376.3998898,0.00020973,2]
[400204138,1767195045250,-376.3998898,0.00020973,2]
[400204139,1767195045260,-10000.0,0.00021,5]
[400204140,1767195045270,-30030.19718622,0.00021,2]
[400204141,1767195045279,-501.19,0.00021,7]
[400204142,1767195045289,-3000.0,0.00021,2]
[400204143,1767195045298,-156.0,0.00021,4]
[400204144,1767195045308,-3000.0,0.0002101,2]
[400204145,1767195045317,-150.0,0.00021012,2]
[400204146,1767195045327,-150.0,0.00021012,2]
[400204147,1767195045336,-3000.0,0.0002102,2]
[400204148,1767195045345,-3000.0,0.0002103,2]
[400204149,1767195045355,-3000.0,0.0002104,2]
[400204150,1767195045364,-3000.0,0.0002105,2]
[400204151,1767195045374,-663.93287602,0.00021057,2]
[400204152,1767195045384,-3000.0,0.0002106,2]
[400204153,1767195045393,-3000.0,0.0002107,2]
[400204154,1767195045403,-3000.0,0.0002108,2]
[400204155,1767195045412,-3000.0,0.0002109,2]
[400204156,1767195045421,-184.1677213,0.00021096,2]
[400204157,1767195045431,-184.1677213,0.00021096,2]
[400204158,1767195045441,-184.1677213,0.00021096,2]
[400204159,1767195045455,-184.1677213,0.00021096,2]
[400204160,1767195045477,-184.1677213,0.00021096,2]
[400204161,1767195045486,-184.1677213,0.00021096,2]
[400204162,1767195045496,-184.1677213,0.00021096,2]
[400204163,1767195045506,-1139.62,0.000211,2]
[400204164,1767195045515,-3000.0,0.000211,2]
[400204165,1767195045525,-3000.0,0.0002111,2]
[400204166,1767195045534,-3000.0,0.0002112,2]
[400204167,1767195045545,-1868.2,0.00021124,2]
[400204168,1767195045554,-3000.0,0.0002113,2]
[400204169,1767195045564,-3000.0,0.0002114,2]
[400204170,1767195045574,-3000.0,0.0002115,2]
[400204171,1767195045584,-3000.0,0.0002116,2]
[400204172,1767195045593,-3000.0,0.0002117,2]
[400204173,1767195045603,-3000.0,0.0002118,2]
[400204174,1767195045613,-3000.0,0.0002119,2]
[400204175,1767195045622,-3000.0,0.000212,2]
[400204176,1767195045631,-3000.0,0.0002121,2]
[400204177,1767195045641,-3000.0,0.0002122,2]
[400204179,1767195045650,-3000.0,0.0002123,2]
[400204180,1767195045659,-3000.0,0.0002124,2]
[400204181,1767195045669,-3000.0,0.0002125,2]
[400204182,1767195045679,-3000.0,0.0002126,2]
[400204183,1767195045688,-1769.89702916,0.0002126,2]
[400204184,1767195045698,-186.7257571,0.0002126,2]
[400204185,1767195045707,-184.1677213,0.0002126,2]
[400204186,1767195045717,-184.1677213,0.0002126,2]
[400204187,1767195045726,-184.1677213,0.0002126,2]
[400204188,1767195045736,-184.1677213,0.0002126,2]
[400204190,1767195045745,-184.1677213,0.0002126,2]
[400204192,1767195045754,-184.1677213,0.0002126,2]
[400204193,1767195045763,-184.1677213,0.0002126,2]
[400204194,1767195045773,-184.1677213,0.0002126,2]
[400204195,1767195045782,-184.1677213,0.0002126,2]
[400204196,1767195045793,-1396.15120835,0.00021263,2]
[400204197,1767195045802,-3000.0,0.0002127,2]
[400204198,1767195045811,-3000.0,0.0002128,2]
[400204199,1767195045821,-3000.0,0.0002129,2]
[400204200,1767195045831,-3000.0,0.000213,2]
[400204201,1767195045841,-627.0,0.00021301,2]
[400204202,1767195045850,-1364.0,0.00021301,2]
[400204203,1767195045859,-150.0,0.00021301,2]
[400204204,1767195045868,-416.0,0.00021301,2]
[400204205,1767195045878,-416.0,0.00021301,2]
[400204206,1767195045888,-3000.0,0.0002131,2]
[400204207,1767195045898,-3000.0,0.0002132,2]
[400204208,1767195045908,-3000.0,0.0002133,2]
[400204209,1767195045918,-3000.0,0.0002134,2]
[400204210,1767195045928,-3000.0,0.0002135,2]
[400204211,1767195045937,-3000.0,0.0002136,2]
[400204212,1767195045947,-193.3811029,0.0002137,2]
[400204213,1767195045959,-193.3811029,0.0002137,2]
[400204214,1767195045969,-193.3811029,0.0002137,2]
[400204215,1767195045978,-193.3811029,0.0002137,2]
[400204216,1767195045987,-193.3811029,0.0002137,2]
[400204217,1767195045998,-193.3811029,0.0002137,2]
[400204218,1767195046008,-193.3811029,0.0002137,2]
[400204219,1767195046018,-193.3811029,0.0002137,2]
[400204220,1767195046031,-193.3811029,0.0002137,2]
[400204221,1767195046040,-193.3811029,0.0002137,2]
[400204223,1767195046050,-193.3811029,0.0002137,2]
[400204224,1767195046059,-193.3811029,0.0002137,2]
[400204226,1767195046070,-193.3811029,0.0002137,2]
[400204228,1767195046079,-193.3811029,0.0002137,2]
[400204229,1767195046089,-193.3811029,0.0002137,2]
[400204230,1767195046099,-3000.0,0.0002137,2]
[400204231,1767195046109,-3000.0,0.0002138,2]
[400204232,1767195046119,-3000.0,0.0002139,2]
[400204233,1767195046128,-3000.0,0.000214,2]
[400204234,1767195046138,-3000.0,0.0002141,2]
[400204235,1767195046148,-3000.0,0.0002142,2]
[400204236,1767195046158,-2000.0,0.00021429,7]
[400204237,1767195046168,-5251.676458,0.0002143,2]
[400204238,1767195046177,-151.0,0.00021434,2]
[400204239,1767195046186,-256.230664,0.00021434,2]
[400204240,1767195046196,-256.230664,0.00021434,2]
[400204241,1767195046205,-256.230664,0.00021434,2]
[400204243,1767195046215,-256.230664,0.00021434,2]
[400204245,1767195046225,-500.0,0.00021448,7]
[400204246,1767195046234,-237.10577026,0.0002148,7]
[400204247,1767195046244,-600.0,0.00021564,2]
[400204248,1767195046253,-165.71,0.000216,2]
[400204249,1767195046263,-160.6,0.000216,2]
[400204250,1767195046272,-13838.09,0.000216,2]
[400204251,1767195046282,-151.0,0.000217,2]
[400204252,1767195046292,-1000.0,0.00021771,10]
[400204253,1767195046303,-1000.0,0.00021771,10]
[400204254,1767195046314,-600.0,0.00021789,2]
[400204255,1767195046323,-947.47465796,0.00021871,7]
[400204256,1767195046333,-376.3998898,0.00021886,2]
[400204257,1767195046343,-449.9036604,0.00021886,2]
[400204258,1767195046353,-376.3998898,0.00021886,2]
[400204259,1767195046362,-376.3998898,0.00021886,2]
[400204260,1767195046371,-376.3998898,0.00021886,2]
[400204261,1767195046381,-376.3998898,0.00021886,2]
[400204262,1767195046390,-376.3998898,0.00021886,2]
[400204263,1767195046399,-376.3998898,0.00021886,2]
[400204264,1767195046408,-376.3998898,0.00021886,2]
[400204265,1767195046418,-770.6306176,0.00021886,2]
[400204266,1767195046427,-20000.0,0.000219,5]
[400204267,1767195046437,-1990.98076962,0.00021917,2]
[400204268,1767195046447,-478.38709814,0.00021917,2]
[400204269,1767195046456,-264.35388073,0.00021917,2]
[400204270,1767195046466,-500.0,0.00021917,2]
[400204271,1767195046476,-407.40454821,0.00021917,2]
[400204272,1767195046485,-500.0,0.00021917,2]
[400204273,1767195046495,-500.0,0.00021917,2]
[400204274,1767195046505,-500.0,0.00021917,2]
[400204275,1767195046514,-481.88984872,0.00021917,2]
[400204276,1767195046524,-501.42186957,0.00021917,2]
[400204277,1767195046534,-500.0,0.00021917,2]
[400204278,1767195046544,-500.0,0.00021917,2]
[400204279,1767195046553,-500.0,0.00021917,2]
[400204280,1767195046563,-500.0,0.00021917,2]
[400204281,1767195046666,-500.0,0.00021917,2]
[400204282,1767195046676,-500.0,0.00021917,2]
[400204283,1767195046686,-497.33546388,0.00021917,2]
[400204284,1767195046695,-1002.6567079,0.00021917,2]
[400204285,1767195046705,-277.46495324,0.00021917,2]
[400204286,1767195046714,-500.0,0.00021917,2]
[400204287,1767195046723,-181.58814641,0.00021917,2]
[400204288,1767195046733,-503.00820269,0.00021917,2]
[400204289,1767195046743,-506.55449777,0.00021917,2]
[400204290,1767195046752,-500.0,0.00021917,2]
[400204291,1767195046761,-419.55533198,0.00021917,2]
[400204292,1767195046772,-572.01801726,0.00021917,2]
[400204293,1767195046781,-500.0,0.00021917,2]
[400204294,1767195046791,-500.0,0.00021917,2]
[400204295,1767195046801,-807.79,0.00021917,2]
[400204296,1767195046810,-500.0,0.00021917,2]
[400204297,1767195046821,-500.0,0.00021917,2]
[400204298,1767195046830,-224.92658771,0.00021917,2]
[400204299,1767195046839,-500.0,0.00021917,2]
[400204300,1767195046849,-500.0,0.00021917,2]
[400204301,1767195046858,-1448.66474,0.00021917,2]
[400204302,1767195046865,-1448.66474,0.00021917,2]
[400204303,1767195046874,-1448.66474,0.00021917,2]
[400204304,1767195046882,-1448.66474,0.00021917,2]
[400204305,1767195046891,-372.52136917,0.00021917,2]
[400204306,1767195046900,-500.0,0.00021917,2]
[400204307,1767195046909,-500.0,0.00021917,2]
[400204308,1767195046918,-500.0,0.00021917,2]
[400204309,1767195046927,-500.0,0.00021917,2]
[400204310,1767195046936,-500.0,0.00021917,2]
[400204311,1767195046946,-1307.38,0.00021917,2]
[400204312,1767195046959,-630.51828472,0.00021917,2]
[400204313,1767195046968,-252.96213876,0.00021917,2]
[400204314,1767195046978,-500.0,0.00021917,2]
[400204315,1767195046987,-11635.72,0.00021917,2]
[400204316,1767195046998,-500.0,0.00021917,2]
[400204317,1767195047007,-500.0,0.00021917,2]
[400204318,1767195047018,-2518.78,0.00021917,2]
[400204319,1767195047031,-500.0,0.00021917,2]
[400204320,1767195047040,-160.32605409,0.00021917,2]
[400204321,1767195047050,-464.72840762,0.00021917,2]
[400204322,1767195047060,-500.0,0.00021917,2]
[400204323,1767195047072,-500.0,0.00021917,2]
[400204324,1767195047081,-500.0,0.00021917,2]
[400204325,1767195047092,-500.0,0.00021917,2]
[400204326,1767195047102,-350.88567988,0.00021917,2]
[400204327,1767195047112,-500.0,0.00021917,2]
[400204328,1767195047120,-335.966046,0.00021918,2]
[400204329,1767195047130,-150.0,0.00021918,2]
[400204330,1767195047139,-5884.83135051,0.00021938,2]
[400204331,1767195047149,-300.0,0.00022,2]
[400204332,1767195047158,-1670.0,0.00022,5]
[400204333,1767195047167,-173.85,0.00022,7]
[400204334,1767195047176,-1456.48795005,0.00022,2]
[400204335,1767195047185,-50191.22090472,0.00022,2]
[400204336,1767195047194,-292.11377097,0.00022,14]
[400204337,1767195047204,-600.0,0.00022014,2]
[400204338,1767195047213,-170.5,0.00022081,2]
[400204339,1767195047223,-184.1677213,0.00022082,2]
[400204340,1767195047232,-184.1677213,0.00022082,2]
[400204341,1767195047242,-153.0,0.00022082,2]
[400204342,1767195047251,-153.0,0.00022082,2]
[400204343,1767195047261,-153.0,0.00022082,2]
[400204344,1767195047271,-1990.98076962,0.00022191,2]
[400204345,1767195047281,-500.0,0.00022191,2]
[400204346,1767195047291,-500.0,0.00022191,2]
[400204347,1767195047300,-500.0,0.00022191,2]
[400204348,1767195047309,-500.0,0.00022191,2]
[400204349,1767195047322,-500.0,0.00022191,2]
[400204350,1767195047332,-501.90354371,0.00022191,2]
[400204351,1767195047341,-500.0,0.00022191,2]
[400204352,1767195047351,-500.0,0.00022191,2]
[400204353,1767195047360,-500.0,0.00022191,2]
[400204354,1767195047369,-633.0,0.00022191,2]
[400204355,1767195047379,-807.79,0.00022191,2]
[400204356,1767195047390,-500.0,0.00022191,2]
[400204357,1767195047399,-500.0,0.00022191,2]
[400204358,1767195047410,-500.0,0.00022191,2]
[400204359,1767195047422,-500.0,0.00022191,2]
[400204360,1767195047432,-500.0,0.00022191,2]
[400204361,1767195047441,-1307.38,0.00022191,2]
[400204362,1767195047451,-500.0,0.00022191,2]
[400204363,1767195047461,-11635.72,0.00022191,2]
[400204364,1767195047471,-247.92609137,0.00022191,2]
[400204365,1767195047480,-500.0,0.00022191,2]
[400204366,1767195047490,-2518.78,0.00022191,2]
[400204367,1767195047499,-500.0,0.00022191,2]
[400204368,1767195047510,-500.0,0.00022191,2]
[400204369,1767195047520,-500.0,0.00022191,2]
[400204370,1767195047530,-500.0,0.00022191,2]
[400204371,1767195047539,-193.3811029,0.00022192,2]
[400204372,1767195047549,-193.3811029,0.00022192,2]
[400204373,1767195047559,-193.3811029,0.00022192,2]
[400204374,1767195047571,-14716.15451875,0.00022232,2]
[400204375,1767195047581,-156.190121,0.00022232,2]
[400204376,1767195047591,-156.190121,0.00022232,2]
[400204377,1767195047601,-156.190121,0.00022232,2]
[400204378,1767195047611,-156.190121,0.00022232,2]
[400204379,1767195047621,-2075.78,0.00022236,2]
[400204380,1767195047631,-600.0,0.00022238,2]
[400204381,1767195047641,-294.99950486,0.00022249,16]
[400204382,1767195047650,-1139.62,0.000224,14]
[400204383,1767195047660,-600.0,0.00022463,2]
[400204384,1767195047671,-1990.98076962,0.00022465,2]
[400204385,1767195047680,-500.0,0.00022465,2]
[400204386,1767195047690,-500.0,0.00022465,2]
[400204387,1767195047700,-614.8,0.00022465,2]
[400204388,1767195047710,-500.0,0.00022465,2]
[400204389,1767195047720,-500.0,0.00022465,2]
[400204390,1767195047730,-502.28889673,0.00022465,2]
[400204391,1767195047739,-500.0,0.00022465,2]
[400204392,1767195047749,-807.79,0.00022465,2]
[400204393,1767195047759,-258.92,0.00022465,2]
[400204394,1767195047769,-500.0,0.00022465,2]
[400204395,1767195047778,-500.0,0.00022465,2]
[400204396,1767195047787,-500.0,0.00022465,2]
[400204397,1767195047796,-500.0,0.00022465,2]
[400204398,1767195047806,-1307.38,0.00022465,2]
[400204399,1767195047817,-500.0,0.00022465,2]
[400204400,1767195047827,-11635.72,0.00022465,2]
[400204401,1767195047837,-500.0,0.00022465,2]
[400204402,1767195047846,-2518.78,0.00022465,2]
[400204403,1767195047856,-188.56245677,0.00022465,2]
[400204404,1767195047866,-500.0,0.00022465,2]
[400204405,1767195047875,-500.0,0.00022465,2]
[400204406,1767195047885,-500.0,0.00022465,2]
[400204407,1767195047894,-300.0,0.00022466,2]
[400204408,1767195047904,-500.0,0.00022498,2]
[400204409,1767195047913,-600.0,0.00022688,2]
[400204410,1767195047923,-4427.0,0.00022702,2]
[400204411,1767195047933,-1990.98076962,0.00022739,2]
[400204412,1767195047942,-500.0,0.00022739,2]
[400204413,1767195047952,-500.0,0.00022739,2]
[400204414,1767195047964,-500.0,0.00022739,2]
[400204415,1767195047973,-500.0,0.00022739,2]
[400204416,1767195047983,-807.79,0.00022739,2]
[400204417,1767195047992,-500.0,0.00022739,2]
[400204418,1767195048002,-500.0,0.00022739,2]
[400204419,1767195048012,-500.0,0.00022739,2]
[400204420,1767195048022,-500.0,0.00022739,2]
[400204421,1767195048032,-1307.38,0.00022739,2]
[400204422,1767195048042,-11635.72,0.00022739,2]
[400204423,1767195048051,-500.0,0.00022739,2]
[400204424,1767195048060,-2518.78,0.00022739,2]
[400204425,1767195048071,-198.3093607,0.00022739,2]
[400204426,1767195048080,-500.0,0.00022739,2]
[400204427,1767195048091,-500.0,0.00022739,2]
[400204428,1767195048100,-153.0,0.0002274,2]
[400204429,1767195048110,-153.0,0.0002274,2]
[400204430,1767195048120,-153.0,0.0002274,2]
[400204431,1767195048129,-153.0,0.0002274,2]
[400204432,1767195048138,-153.0,0.0002274,2]
[400204433,1767195048147,-153.0,0.0002274,2]
[400204434,1767195048156,-811.4391677,0.00022745,2]
[400204435,1767195048166,-120413.5351466,0.0002277,2]
[400204436,1767195048294,-424.98544263,0.0002277,2]
[400204437,1767195048306,-514.69717787,0.0002277,2]
[400204438,1767195048407,-753.08387083,0.0002277,2]
[400204439,1767195048419,-843.43653506,0.0002277,2]
[400204440,1767195048449,-962.90483742,0.0002277,2]
[400204441,1767195049203,-259.60931661,0.00010646,2]
[400204442,1767195049213,-155.55852274,0.00010646,2]
[400204443,1767195049222,-500.0,0.00010646,2]
[400204444,1767195049232,-500.0,0.00010646,2]
[400204445,1767195049241,-500.0,0.00010646,2]
[400204446,1767195049250,-500.0,0.00010646,2]
[400204447,1767195049260,-346.59223998,0.00010646,2]
[400204448,1767195049270,-286.4503591,0.00010646,2]
[400204449,1767195049279,-500.0,0.00010646,2]
[400204450,1767195049288,-500.0,0.00010646,2]
[400204451,1767195049298,-500.0,0.00010646,2]
[400204452,1767195049307,-500.0,0.00010646,2]
[400204453,1767195049316,-500.0,0.00010646,2]
[400204454,1767195049326,-500.0,0.00010646,2]
[400204455,1767195049336,-500.0,0.00010646,2]
[400204456,1767195049346,-500.0,0.00010646,2]
[400204457,1767195049355,-500.0,0.00010646,2]
[400204458,1767195049364,-500.0,0.00010646,2]
[400204459,1767195049374,-500.0,0.00010646,2]
[400204460,1767195049383,-646.52845229,0.00010646,2]
[400204461,1767195049393,-500.0,0.00010646,2]
[400204462,1767195049402,-500.0,0.00010646,2]
[400204463,1767195049411,-565.0,0.00010646,2]
[400204464,1767195049420,-500.0,0.00010646,2]
[400204465,1767195049430,-500.0,0.00010646,2]
[400204466,1767195049439,-500.0,0.00010646,2]
[400204467,1767195049449,-500.0,0.00010646,2]
[400204468,1767195049458,-500.0,0.00010646,2]
[400204469,1767195049468,-500.0,0.00010646,2]
[400204470,1767195049478,-500.0,0.00013699,2]
[400204471,1767195049487,-500.0,0.00013699,2]
[400204472,1767195049497,-590.43328227,0.00013699,2]
[400204473,1767195049507,-500.0,0.00013699,2]
[400204474,1767195049516,-500.0,0.00013699,2]
[400204475,1767195049526,-500.0,0.00013699,2]
[400204476,1767195049536,-500.0,0.00013699,2]
[400204477,1767195049546,-500.0,0.00013699,2]
[400204478,1767195049555,-500.0,0.00013699,2]
[400204479,1767195049565,-1000.0,0.00014247,2]
[400204480,1767195049575,-1500.0,0.00014795,2]
[400204481,1767195049585,-151.0,0.00015342,2]
[400204482,1767195049595,-151.0,0.00015342,2]
[400204483,1767195049605,-1500.0,0.00015342,2]
[400204484,1767195049615,-500.0,0.00016438,2]
[400204485,1767195049626,-500.0,0.00016438,2]
[400204486,1767195049636,-250.0,0.00016673,2]
[400204487,1767195049646,-250.0,0.00016673,2]
[400204488,1767195049656,-250.0,0.00016673,2]
[400204489,1767195049666,-250.0,0.00016673,2]
[400204490,1767195049676,-250.0,0.00016673,2]
[400204491,1767195049686,-250.0,0.00016673,2]
[400204492,1767195049696,-250.0,0.00016673,2]
[400204493,1767195049707,-250.0,0.00016673,2]
[400204494,1767195049717,-250.0,0.00016673,2]
[400204495,1767195049727,-250.0,0.00016673,2]
[400204496,1767195049738,-151.0,0.000178,2]
[400204497,1767195049748,-151.0,0.000178,2]
[400204498,1767195049758,-500.0,0.00019178,2]
[400204499,1767195049767,-500.0,0.00019178,2]
[400204500,1767195049777,-500.0,0.00019178,2]
[400204501,1767195049787,-500.0,0.00019178,2]
[400204502,1767195049796,-500.0,0.00019178,2]
[400204503,1767195049806,-500.0,0.00019178,2]
[400204504,1767195049816,-500.0,0.00019178,2]
[400204505,1767195049826,-500.0,0.00019178,2]
[400204506,1767195049836,-167.95184871,0.00019178,2]
[400204507,1767195049847,-151.0,0.000209,2]
[400204508,1767195049857,-151.0,0.000209,2]
[400204509,1767195049866,-688.49839244,0.00021605,2]
[400204510,1767195049876,-3308.18,0.00021917,2]
[400204511,1767195049886,-713.97283296,0.00022153,2]
[400204512,1767195049989,-3308.18,0.00022191,2]
[400204513,1767195050001,-3308.18,0.00022465,2]
[400204514,1767195050011,-740.38982778,0.00022701,2]
[400204515,1767195050021,-3308.18,0.00022739,2]
[400204516,1767195050031,-872912.67968728,0.0002277,2]
[400204517,1767195050041,-151.0,0.0002277,2]
[400204518,1767195050050,-151.0,0.0002277,2]
[400204519,1767195050059,-332.24219281,0.00022789,2]
[400204520,1767195050069,-478.25220598,0.00022789,2]
[400204521,1767195050078,-172.18202424,0.00022789,2]
[400204522,1767195050087,-192.80890415,0.00022789,2]
[400204523,1767195050096,-173.85,0.000228,7]
[400204524,1767195050106,-152.80499653,0.00022839,2]
[400204525,1767195050115,-376.3998898,0.00022845,2]
[400204526,1767195050124,-376.3998898,0.00022845,2]
[400204527,1767195050134,-376.3998898,0.00022845,2]
[400204528,1767195050143,-376.3998898,0.00022845,2]
[400204529,1767195050152,-376.3998898,0.00022845,2]
[400204530,1767195050161,-376.3998898,0.00022845,2]
[400204531,1767195050171,-376.3998898,0.00022845,2]
[400204532,1767195050180,-376.3998898,0.00022845,2]
[400204533,1767195050189,-376.3998898,0.00022845,2]
[400204534,1767195050198,-376.3998898,0.00022845,2]
[400204535,1767195050208,-376.3998898,0.00022845,2]
[400204536,1767195050217,-2000.0,0.00022857,7]
[400204537,1767195050227,-778.66254772,0.0002287,2]
[400204538,1767195050237,-153.0,0.00022877,2]
[400204539,1767195050246,-153.0,0.00022877,2]
[400204540,1767195050256,-153.0,0.00022877,2]
[400204541,1767195050265,-153.0,0.00022877,2]
[400204542,1767195050274,-153.0,0.00022877,2]
[400204543,1767195050284,-153.0,0.00022877,2]
[400204544,1767195050293,-153.0,0.00022877,2]
[400204545,1767195050302,-20000.0,0.000229,7]
[400204546,1767195050311,-165.71,0.000229,7]
[400204547,1767195050321,-13838.09,0.000229,2]
[400204548,1767195050331,-154.6016492,0.00022904,2]
[400204549,1767195050341,-153.0,0.00022904,2]
[400204550,1767195050350,-153.0,0.00022904,2]
[400204551,1767195050359,-153.0,0.00022904,2]
[400204552,1767195050368,-153.0,0.00022904,2]
[400204553,1767195050378,-153.0,0.00022904,2]
[400204554,1767195050387,-153.0,0.00022904,2]
[400204555,1767195050397,-153.0,0.00022904,2]
[400204556,1767195050407,-153.0,0.00022904,2]
[400204557,1767195050416,-5000.0,0.00022911,2]
[400204558,1767195050426,-600.0,0.00022912,2]
[400204559,1767195050436,-332.24219281,0.00022926,4]
[400204560,1767195050445,-478.25220598,0.00022926,9]
[400204561,1767195050455,-149999.999999,0.00023,2]
[400204562,1767195050464,-350000.000001,0.00023,2]
[400204563,1767195050474,-171.8,0.00023,2]
[400204564,1767195050484,-150000.0,0.00023,10]
[400204565,1767195050494,-8028.51183462,0.00023,2]
[400204566,1767195050503,-1041.66666667,0.00023,3]
[400204567,1767195050513,-184.0,0.00023,7]
[400204568,1767195050522,-1448.66474,0.00023,2]
[400204569,1767195050531,-1448.66474,0.00023,2]
[400204570,1767195050541,-1448.66474,0.00023,2]
[400204571,1767195050550,-1448.66474,0.00023,2]
[400204572,1767195050560,-151.0,0.00023,2]
[400204573,1767195050570,-256.230664,0.00023,2]
[400204574,1767195050579,-256.230664,0.00023,2]
[400204575,1767195050588,-256.230664,0.00023,2]
[400204576,1767195050598,-256.230664,0.00023,2]
[400204577,1767195050607,-151.0,0.00023,2]
[400204578,1767195050617,-1041.66666667,0.00023,3]
[400204579,1767195050627,-156.190121,0.00023,2]
[400204580,1767195050637,-156.190121,0.00023,2]
[400204581,1767195050646,-156.190121,0.00023,2]
[400204582,1767195050655,-156.190113,0.00023,2]
[400204583,1767195050665,-166.0,0.00023,7]
[400204584,1767195050675,-151.0,0.00023,2]
[400204585,1767195050685,-260.08767073,0.00023013,2]
[400204586,1767195050694,-500.0,0.00023013,2]
[400204587,1767195050703,-500.0,0.00023013,2]
[400204588,1767195050712,-345.51,0.00023013,2]
[400204589,1767195050722,-807.79,0.00023013,2]
[400204590,1767195050731,-1664.85963994,0.00023013,2]
[400204591,1767195050740,-500.0,0.00023013,2]
[400204592,1767195050750,-500.0,0.00023013,2]
[400204593,1767195050759,-500.0,0.00023013,2]
[400204594,1767195050768,-500.0,0.00023013,2]
[400204595,1767195050778,-1307.38,0.00023013,2]
[400204596,1767195050788,-11635.72,0.00023013,2]
[400204597,1767195050797,-500.0,0.00023013,2]
[400204598,1767195050806,-2518.78,0.00023013,2]
[400204599,1767195050816,-500.0,0.00023013,2]
[400204600,1767195050826,-500.0,0.00023013,2]
[400204601,1767195050836,-3308.18,0.00023013,2]
[400204602,1767195050846,-275.96070951,0.00023014,2]
[400204603,1767195050855,-172.18202424,0.00023063,6]
[400204604,1767195050865,-192.80890415,0.00023063,17]
[400204605,1767195050874,-332.24219281,0.00023063,6]
[400204606,1767195050883,-478.25220598,0.00023063,17]
[400204607,1767195050893,-600.0,0.00023137,2]
[400204608,1767195050902,-332.24219281,0.000232,8]
[400204609,1767195050911,-478.25220598,0.000232,25]
[400204610,1767195050921,-376.3998898,0.00023228,2]
[400204611,1767195050930,-372.5056488,0.00023228,2]
[400204612,1767195050939,-376.3998898,0.00023228,2]
[400204613,1767195050949,-376.3998898,0.00023228,2]
[400204614,1767195050962,-376.3998898,0.00023228,2]
[400204615,1767195050972,-376.3998898,0.00023228,2]